[Event "7th Iberoamerican-ch 2019"]
[Site "Linares"]
[Date "2019.08.11"]
[Round "2.9"]
[White "Vega Gutierrez, Sabrina"]
[Black "Martinez Duany, Lelys Stanley"]
[Result "0-1"]
[ECO "C99"]
[WhiteElo "2385"]
[BlackElo "2535"]
[Annotator "ChessBase"]
[PlyCount "120"]
[EventDate "2019.08.10"]
[EventType "swiss"]
[EventCountry "ESP"]
[SourceTitle "playchess.com"]
[Source "ChessBase"]
[SourceQuality "1"]
[TimeControl "5400+30"]

1. e4 {[%emt 0:00:00]} e5 {[%emt 0:00:00]} 2. Nf3 {[%emt 0:00:00]} Nc6 {[%emt 0:00:00]} 3. Bb5 {[%emt 0:00:47]} a6 {[%emt 0:00:00]} 4. Ba4 {[%emt 0:00:09]} Nf6 {[%emt 0:00:03]} 5. O-O {[%emt 0:00:25]} Be7 {[%emt 0:00:14]} 6. Re1 {[%emt 0:00:19]} b5 {[%emt 0:00:32]} 7. Bb3 {[%emt 0:00:08]} d6 {[%emt 0:00:05]} 8. c3 {[%emt 0:00:24]} O-O {[%emt 0:01:56]} 9. h3 {[%emt 0:00:19]} Na5 {[%emt 0:00:53]} 10. Bc2 {[%emt 0:00:12]} c5 {[%emt 0:00:08]} 11. d4 {[%emt 0:00:50]} Qc7 {[%emt 0:02:41]} 12. Nbd2 {[%emt 0:01:10]} cxd4 {[%emt 0:01:54]} 13. cxd4 {[%emt 0:00:12]} Rd8 {[%emt 0:01:08]} 14. d5 {[%emt 0:10:34]} Bd7 {[%emt 0:00:20]} 15. Nf1 {[%emt 0:01:03]} Rdc8 {[%emt 0:00:46]} 16. Bd3 {[%emt 0:03:55]} Nb7 {[%emt 0:01:29]} 17. Be3 {[%emt 0:16:09]} Nc5 {[%emt 0:00:16]} 18. Rc1 {[%emt 0:01:39]} Qb8 {[%emt 0:00:48]} 19. Ng3 {[%emt 0:03:00]} Nxd3 {[%emt 0:00:14]} 20. Qxd3 {[%emt 0:00:57]} Qb7 {[%emt 0:00:17]} 21. b4 {[%emt 0:07:46]} Bd8 {[%emt 0:15:04]} 22. Qb1 {[%emt 0:05:17]} Bb6 {[%emt 0:05:19]} 23. Bxb6 {[%emt 0:02:57]} Qxb6 {[%emt 0:00:04]} 24. Rxc8+ {[%emt 0:02:55]} Rxc8 {[%emt 0:00:05]} 25. Rc1 {[%emt 0:00:05]} Rc7 {[%emt 0:01:57]} 26. Rc2 {[%emt 0:03:28]} a5 {[%emt 0:01:03]} 27. bxa5 {[%emt 0:06:58]} Qxa5 {[%emt 0:00:05]} 28. Rxc7 {[%emt 0:00:12]} Qxc7 {[%emt 0:00:06]} 29. Qb4 {[%emt 0:00:26]} h5 {[%emt 0:09:10]} 30. Nf1 {[%emt 0:08:43]} g6 {[%emt 0:01:43]} 31. Ne3 {[%emt 0:05:16]} Kg7 {[%emt 0:00:36]} 32. Kh2 {[%emt 0:00:34]} Be8 {[%emt 0:01:06]} 33. a3 {[%emt 0:02:31]} Bd7 {[%emt 0:03:13]} 34. Nd2 {[%emt 0:10:04]} Ne8 {[%emt 0:03:24]} 35. Nb3 {[%emt 0:02:35]} Qd8 {[%emt 0:03:59]} 36. Nc1 {[%emt 0:03:15]} h4 {[%emt 0:04:37]} 37. Nd3 {[%emt 0:00:03]} Qc7 {[%emt 0:00:23]} 38. Kg1 {[%emt 0:00:17]} Nf6 {[%emt 0:00:37]} 39. Kf1 {[%emt 0:01:10]} Nh5 {[%emt 0:01:07]} 40. Qd2 {[%emt 0:02:27]} Kg8 {[%emt 0:06:00]} 41. Qc1 {[%emt 0:00:35]} Qxc1+ {[%emt 0:01:57]} 42. Nxc1 {[%emt 0:00:02]} f5 {[%emt 0:00:11]} 43. exf5 {[%emt 0:00:55]} gxf5 {[%emt 0:00:06]} 44. Nd3 {[%emt 0:00:42]} Kf7 {[%emt 0:01:06]} 45. Nb4 {[%emt 0:00:32]} Kf6 {[%emt 0:00:40]} 46. Ke2 {[%emt 0:00:30]} Kg5 {[%emt 0:00:23]} 47. Nf1 {[%emt 0:00:31]} Nf4+ {[%emt 0:00:16]} 48. Kf3 {[%emt 0:00:29]} e4+ {[%emt 0:00:09]} 49. Ke3 {[%emt 0:00:01]} Nxg2+ {[%emt 0:00:09]} 50. Kd4 {[%emt 0:00:30]} Nf4 {[%emt 0:00:17]} 51. f3 {[%emt 0:00:39]} exf3 {[%emt 0:00:52]} 52. Ke3 {[%emt 0:00:02]} Nxh3 {[%emt 0:00:17]} 53. Kxf3 {[%emt 0:00:03]} Nf4 {[%emt 0:01:01]} 54. Ne3 {[%emt 0:01:03]} Ng6 {[%emt 0:00:11]} 55. Nec2 {[%emt 0:00:45]} Ne5+ {[%emt 0:00:11]} 56. Kg2 {[%emt 0:00:09]} f4 {[%emt 0:00:18]} 57. Nd4 {[%emt 0:00:04]} h3+ {[%emt 0:00:41]} 58. Kh2 {[%emt 0:01:12]} Kh4 {[%emt 0:00:14]} 59. Nbc2 {[%emt 0:01:03]} f3 {[%emt 0:01:29]} 60. Ne3 {[%emt 0:00:20]} Ng4+ {[%emt 0:00:34]} 0-1

[Event "7th Iberoamerican-ch 2019"]
[Site "Linares"]
[Date "2019.08.11"]
[Round "2.10"]
[White "Krysa, Leandro"]
[Black "Mieles Palau, Daniel"]
[Result "1/2-1/2"]
[ECO "A06"]
[WhiteElo "2517"]
[BlackElo "2359"]
[Annotator "ChessBase"]
[PlyCount "69"]
[EventDate "2019.08.10"]
[EventType "swiss"]
[EventCountry "ESP"]
[SourceTitle "playchess.com"]
[Source "ChessBase"]
[SourceQuality "1"]
[TimeControl "5400+30"]

1. Nf3 {[%emt 0:00:00]} d5 {[%emt 0:00:33]} 2. g3 {[%emt 0:00:00]} Nf6 {[%emt 0:05:54]} 3. Bg2 {[%emt 0:00:12]} g6 {[%emt 0:00:31]} 4. d4 {[%emt 0:02:42]} Bg7 {[%emt 0:00:23]} 5. c4 {[%emt 0:00:24]} dxc4 {[%emt 0:02:20]} 6. Na3 {[%emt 0:00:44]} O-O {[%emt 0:04:04]} 7. O-O {[%emt 0:00:34]} c6 {[%emt 0:01:28]} 8. Nxc4 {[%emt 0:00:47]} Be6 {[%emt 0:01:36]} 9. b3 {[%emt 0:01:50]} Nbd7 {[%emt 0:07:24]} 10. Bb2 {[%emt 0:05:20]} Bd5 {[%emt 0:06:18]} 11. e3 {[%emt 0:05:30]} c5 {[%emt 0:04:42]} 12. Rc1 {[%emt 0:11:33]} Rc8 {[%emt 0:09:22]} 13. Qe2 {[%emt 0:01:28]} cxd4 {[%emt 0:00:33]} 14. Nxd4 {[%emt 0:08:36]} Bxg2 {[%emt 0:05:31]} 15. Kxg2 {[%emt 0:00:04]} Nb6 {[%emt 0:02:57]} 16. Ne5 {[%emt 0:06:58]} Qd5+ {[%emt 0:08:17]} 17. Ndf3 {[%emt 0:00:48]} Ne4 {[%emt 0:04:15]} 18. Rfd1 {[%emt 0:06:47]} Qa5 {[%emt 0:00:54]} 19. Bd4 {[%emt 0:01:22]} Rfd8 {[%emt 0:02:43]} 20. Qb2 {[%emt 0:05:40]} Rxc1 {[%emt 0:05:18]} 21. Rxc1 {[%emt 0:00:22]} f6 {[%emt 0:01:22]} 22. Nc4 {[%emt 0:10:55]} Nxc4 {[%emt 0:00:18]} 23. Rxc4 {[%emt 0:03:37]} a6 {[%emt 0:09:50]} 24. Qc2 {[%emt 0:05:26]} Ng5 {[%emt 0:04:03]} 25. Rc5 {[%emt 0:04:23]} Qb4 {[%emt 0:00:08]} 26. Nxg5 {[%emt 0:06:19]} fxg5 {[%emt 0:00:04]} 27. Rc4 {[%emt 0:04:58]} Qa5 {[%emt 0:01:32]} 28. Bxg7 {[%emt 0:01:03]} Kxg7 {[%emt 0:00:20]} 29. Qe4 {[%emt 0:00:56]} Rd7 {[%emt 0:02:16]} 30. Rd4 {[%emt 0:02:02]} Qc7 {[%emt 0:03:03]} 31. Rxd7 {[%emt 0:00:56]} Qxd7 {[%emt 0:00:02]} 32. g4 {[%emt 0:00:30]} Kf7 {[%emt 0:01:49]} 33. h3 {[%emt 0:00:21]} b5 {[%emt 0:01:17]} 34. Qa8 {[%emt 0:01:49]} Qd6 {[%emt 0:00:34]} 35. a4 {[%emt 0:01:56]} 1/2-1/2

[Event "7th Iberoamerican-ch 2019"]
[Site "Linares"]
[Date "2019.08.11"]
[Round "2.11"]
[White "Cruz Ravina, Francisco Javier"]
[Black "Cuenca Jimenez, Jose Fernando"]
[Result "0-1"]
[ECO "E63"]
[WhiteElo "2363"]
[BlackElo "2534"]
[Annotator "ChessBase"]
[PlyCount "102"]
[EventDate "2019.08.10"]
[EventType "swiss"]
[EventCountry "ESP"]
[SourceTitle "playchess.com"]
[Source "ChessBase"]
[SourceQuality "1"]
[TimeControl "5400+30"]

1. Nf3 {[%emt 0:00:00]} Nf6 {[%emt 0:03:30]} 2. c4 {[%emt 0:00:50]} g6 {[%emt 0:01:04]} 3. g3 {[%emt 0:00:43]} Bg7 {[%emt 0:00:09]} 4. Bg2 {[%emt 0:00:07]} O-O {[%emt 0:00:04]} 5. O-O {[%emt 0:00:31]} d6 {[%emt 0:00:13]} 6. d4 {[%emt 0:01:43]} Nc6 {[%emt 0:00:17]} 7. Nc3 {[%emt 0:01:45]} a6 {[%emt 0:00:03]} 8. d5 {[%emt 0:01:47]} Na5 {[%emt 0:00:15]} 9. b3 {[%emt 0:03:15]} Rb8 {[%emt 0:03:38]} 10. Bb2 {[%emt 0:07:02]} b5 {[%emt 0:00:06]} 11. cxb5 {[%emt 0:01:09]} axb5 {[%emt 0:00:02]} 12. a3 {[%emt 0:01:15]} c5 {[%emt 0:08:48]} 13. dxc6 {[%emt 0:04:14]} Nxc6 {[%emt 0:01:49]} 14. b4 {[%emt 0:01:13]} Qb6 {[%emt 0:11:55]} 15. e3 {[%emt 0:15:23]} Be6 {[%emt 0:04:44]} 16. Re1 {[%emt 0:07:21]} Bc4 {[%emt 0:04:47]} 17. Bf1 {[%emt 0:06:52]} d5 {[%emt 0:12:59]} 18. Bxc4 {[%emt 0:01:29]} dxc4 {[%emt 0:00:26]} 19. Qe2 {[%emt 0:01:11]} e6 {[%emt 0:06:24]} 20. Red1 {[%emt 0:04:31]} Rfd8 {[%emt 0:03:07]} 21. Rxd8+ {[%emt 0:13:40]} Rxd8 {[%emt 0:01:00]} 22. Rd1 {[%emt 0:00:28]} Rxd1+ {[%emt 0:05:31]} 23. Qxd1 {[%emt 0:00:17]} Qb7 {[%emt 0:03:59]} 24. Ne1 {[%emt 0:04:54]} Nd5 {[%emt 0:11:32]} 25. Qd2 {[%emt 0:07:03]} Bxc3 {[%emt 0:01:38]} 26. Bxc3 {[%emt 0:00:07]} Nxc3 {[%emt 0:00:47]} 27. Qxc3 {[%emt 0:00:06]} Qa8 {[%emt 0:00:42]} 28. h4 {[%emt 0:09:34]} Qa4 {[%emt 0:02:36]} 29. Kf1 {[%emt 0:04:12]} Qd1 {[%emt 0:06:24]} 30. Qc2 {[%emt 0:00:55]} Qa1 {[%emt 0:03:40]} 31. Qe4 {[%emt 0:00:20]} Ne7 {[%emt 0:02:32]} 32. Qd4 {[%emt 0:00:16]} Qxd4 {[%emt 0:00:24]} 33. exd4 {[%emt 0:00:05]} Kf8 {[%emt 0:00:28]} 34. Ke2 {[%emt 0:00:49]} Nd5 {[%emt 0:00:45]} 35. Kd2 {[%emt 0:00:27]} Ke7 {[%emt 0:00:10]} 36. Nf3 {[%emt 0:01:00]} f6 {[%emt 0:00:24]} 37. Kc2 {[%emt 0:00:21]} Kd6 {[%emt 0:00:21]} 38. Nd2 {[%emt 0:00:33]} f5 {[%emt 0:00:13]} 39. Nf1 {[%emt 0:01:01]} Nf6 {[%emt 0:00:45]} 40. f3 {[%emt 0:00:39]} Nd5 {[%emt 0:00:42]} 41. Kd2 {[%emt 0:00:19]} e5 {[%emt 0:01:01]} 42. dxe5+ {[%emt 0:00:29]} Kxe5 {[%emt 0:00:01]} 43. Ne3 {[%emt 0:00:41]} Nxe3 {[%emt 0:00:16]} 44. Kxe3 {[%emt 0:00:06]} h6 {[%emt 0:01:06]} 45. g4 {[%emt 0:00:17]} f4+ {[%emt 0:00:17]} 46. Kd2 {[%emt 0:00:12]} Kd4 {[%emt 0:00:04]} 47. h5 {[%emt 0:01:09]} gxh5 {[%emt 0:00:57]} 48. gxh5 {[%emt 0:00:06]} c3+ {[%emt 0:00:02]} 49. Kc1 {[%emt 0:01:02]} Kd3 {[%emt 0:00:13]} 50. Kd1 {[%emt 0:00:38]} c2+ {[%emt 0:00:19]} 51. Kc1 {[%emt 0:00:05]} Kc3 {[%emt 0:00:02]} 0-1

[Event "7th Iberoamerican-ch 2019"]
[Site "Linares"]
[Date "2019.08.11"]
[Round "2.12"]
[White "Sosa, Tomas"]
[Black "Matnadze, Ana"]
[Result "1-0"]
[ECO "B15"]
[WhiteElo "2516"]
[BlackElo "2363"]
[Annotator "ChessBase"]
[PlyCount "95"]
[EventDate "2019.08.10"]
[EventType "swiss"]
[EventCountry "ESP"]
[SourceTitle "playchess.com"]
[Source "ChessBase"]
[SourceQuality "1"]
[TimeControl "5400+30"]

1. e4 {[%emt 0:00:00]} c6 {[%emt 0:00:00]} 2. d4 {[%emt 0:00:06]} d5 {[%emt 0:00:00]} 3. Nc3 {[%emt 0:00:04]} dxe4 {[%emt 0:00:00]} 4. Nxe4 {[%emt 0:00:11]} Nf6 {[%emt 0:00:00]} 5. Nxf6+ {[%emt 0:00:06]} exf6 {[%emt 0:00:00]} 6. Be3 {[%emt 0:00:09]} Bd6 {[%emt 0:00:21]} 7. Bd3 {[%emt 0:00:25]} Qc7 {[%emt 0:01:25]} 8. Qf3 {[%emt 0:03:19]} Be6 {[%emt 0:01:01]} 9. Ne2 {[%emt 0:00:09]} Nd7 {[%emt 0:07:52]} 10. Nf4 {[%emt 0:06:55]} O-O-O {[%emt 0:01:22]} 11. Nxe6 {[%emt 0:11:10]} fxe6 {[%emt 0:00:04]} 12. O-O-O {[%emt 0:00:16]} Kb8 {[%emt 0:03:58]} 13. Qg4 {[%emt 0:04:08]} Nf8 {[%emt 0:01:56]} 14. Kb1 {[%emt 0:07:56]} h5 {[%emt 0:02:53]} 15. Qe4 {[%emt 0:01:47]} g5 {[%emt 0:02:24]} 16. Bc4 {[%emt 0:03:51]} h4 {[%emt 0:03:22]} 17. Qg4 {[%emt 0:07:59]} Re8 {[%emt 0:05:45]} 18. g3 {[%emt 0:01:41]} Qh7 {[%emt 0:01:45]} 19. d5 {[%emt 0:14:54]} exd5 {[%emt 0:02:13]} 20. Qd4 {[%emt 0:01:31]} b5 {[%emt 0:23:54]} 21. Qxf6 {[%emt 0:06:40]} Qh6 {[%emt 0:03:01]} 22. Qxh6 {[%emt 0:14:04]} Rxh6 {[%emt 0:01:09]} 23. Bd3 {[%emt 0:00:03]} hxg3 {[%emt 0:02:16]} 24. hxg3 {[%emt 0:00:06]} Rxh1 {[%emt 0:00:14]} 25. Rxh1 {[%emt 0:00:03]} Bxg3 {[%emt 0:00:57]} 26. Re1 {[%emt 0:00:14]} Rxe3 {[%emt 0:04:33]} 27. Rxe3 {[%emt 0:00:35]} Bd6 {[%emt 0:00:03]} 28. Bf5 {[%emt 0:00:18]} Kc7 {[%emt 0:00:07]} 29. Re8 {[%emt 0:00:18]} b4 {[%emt 0:01:54]} 30. c3 {[%emt 0:00:33]} bxc3 {[%emt 0:02:37]} 31. bxc3 {[%emt 0:00:04]} Nd7 {[%emt 0:01:51]} 32. Rg8 {[%emt 0:00:56]} Be7 {[%emt 0:01:39]} 33. Rg7 {[%emt 0:00:11]} Kd6 {[%emt 0:00:14]} 34. Rg6+ {[%emt 0:00:05]} Kc7 {[%emt 0:00:11]} 35. Bxd7 {[%emt 0:00:04]} Kxd7 {[%emt 0:00:06]} 36. Kc2 {[%emt 0:00:08]} Bd8 {[%emt 0:00:31]} 37. Kd3 {[%emt 0:01:01]} a5 {[%emt 0:00:29]} 38. f3 {[%emt 0:01:30]} Kc7 {[%emt 0:00:24]} 39. Kd4 {[%emt 0:01:49]} Kb6 {[%emt 0:00:30]} 40. Ke5 {[%emt 0:01:50]} Kb5 {[%emt 0:08:53]} 41. Kd6 {[%emt 0:00:23]} Bb6 {[%emt 0:01:46]} 42. Rxg5 {[%emt 0:04:09]} Be3 {[%emt 0:00:14]} 43. Rg4 {[%emt 0:01:13]} a4 {[%emt 0:00:47]} 44. Rb4+ {[%emt 0:00:43]} Ka5 {[%emt 0:00:03]} 45. Kxc6 {[%emt 0:00:07]} d4 {[%emt 0:00:38]} 46. Rb5+ {[%emt 0:00:33]} Ka6 {[%emt 0:00:03]} 47. cxd4 {[%emt 0:00:06]} Bxd4 {[%emt 0:00:05]} 48. Rb4 {[%emt 0:00:05]} 1-0

[Event "7th Iberoamerican-ch 2019"]
[Site "Linares"]
[Date "2019.08.11"]
[Round "2.13"]
[White "Sos Andreu, Eric"]
[Black "Salinas Herrera, Pablo"]
[Result "1/2-1/2"]
[ECO "D30"]
[WhiteElo "2343"]
[BlackElo "2498"]
[Annotator "ChessBase"]
[PlyCount "85"]
[EventDate "2019.08.10"]
[EventType "swiss"]
[EventCountry "ESP"]
[SourceTitle "playchess.com"]
[Source "ChessBase"]
[SourceQuality "1"]
[TimeControl "5400+30"]

1. d4 {[%emt 0:00:00]} d5 {[%emt 0:03:17]} 2. c4 {[%emt 0:00:00]} e6 {[%emt 0:00:13]} 3. Nf3 {[%emt 0:00:00]} a6 {[%emt 0:00:05]} 4. cxd5 {[%emt 0:02:45]} exd5 {[%emt 0:00:06]} 5. Nc3 {[%emt 0:00:06]} Nf6 {[%emt 0:00:03]} 6. Bg5 {[%emt 0:00:34]} Be6 {[%emt 0:00:05]} 7. e3 {[%emt 0:01:50]} Nbd7 {[%emt 0:00:22]} 8. Bd3 {[%emt 0:01:12]} Bd6 {[%emt 0:00:07]} 9. O-O {[%emt 0:00:43]} h6 {[%emt 0:01:43]} 10. Bf4 {[%emt 0:05:43]} Qe7 {[%emt 0:00:09]} 11. Bxd6 {[%emt 0:07:30]} Qxd6 {[%emt 0:00:07]} 12. Rc1 {[%emt 0:00:19]} O-O {[%emt 0:08:17]} 13. Na4 {[%emt 0:04:21]} Bg4 {[%emt 0:17:59]} 14. h3 {[%emt 0:06:27]} Bxf3 {[%emt 0:00:18]} 15. Qxf3 {[%emt 0:00:28]} Rfe8 {[%emt 0:03:29]} 16. Qd1 {[%emt 0:06:23]} c6 {[%emt 0:04:47]} 17. a3 {[%emt 0:03:51]} Re7 {[%emt 0:03:46]} 18. b4 {[%emt 0:01:31]} b5 {[%emt 0:01:28]} 19. Nc5 {[%emt 0:00:54]} Nxc5 {[%emt 0:04:05]} 20. bxc5 {[%emt 0:08:40]} Qd8 {[%emt 0:00:09]} 21. a4 {[%emt 0:01:42]} Rb7 {[%emt 0:02:56]} 22. Qb3 {[%emt 0:04:31]} b4 {[%emt 0:04:21]} 23. a5 {[%emt 0:02:04]} Qxa5 {[%emt 0:00:06]} 24. Ra1 {[%emt 0:00:04]} Qd8 {[%emt 0:00:31]} 25. Rxa6 {[%emt 0:02:22]} Rxa6 {[%emt 0:00:24]} 26. Bxa6 {[%emt 0:00:04]} Ra7 {[%emt 0:00:25]} 27. Be2 {[%emt 0:01:02]} Qa5 {[%emt 0:02:03]} 28. Rb1 {[%emt 0:04:06]} Rb7 {[%emt 0:00:17]} 29. Bd3 {[%emt 0:00:28]} h5 {[%emt 0:11:23]} 30. g3 {[%emt 0:02:27]} h4 {[%emt 0:00:39]} 31. g4 {[%emt 0:00:49]} g6 {[%emt 0:14:37]} 32. Kg2 {[%emt 0:08:11]} Kg7 {[%emt 0:01:17]} 33. Rb2 {[%emt 0:00:34]} Ne4 {[%emt 0:00:13]} 34. Bxe4 {[%emt 0:08:53]} dxe4 {[%emt 0:00:06]} 35. Qc2 {[%emt 0:01:27]} f5 {[%emt 0:00:32]} 36. gxf5 {[%emt 0:00:43]} gxf5 {[%emt 0:00:06]} 37. Qc4 {[%emt 0:00:11]} Kh8 {[%emt 0:02:04]} 38. Qe6 {[%emt 0:04:36]} Rg7+ {[%emt 0:11:49]} 39. Kh2 {[%emt 0:00:05]} Qa1 {[%emt 0:04:29]} 40. Qe8+ {[%emt 0:01:29]} Kh7 {[%emt 0:00:28]} 41. Qh5+ {[%emt 0:00:31]} Kg8 {[%emt 0:00:04]} 42. Qe8+ {[%emt 0:00:04]} Kh7 {[%emt 0:00:03]} 43. Qh5+ 1/2-1/2

[Event "7th Iberoamerican-ch 2019"]
[Site "Linares"]
[Date "2019.08.11"]
[Round "2.14"]
[White "Perez Garcia, Alejandro"]
[Black "Espinosa Aranda, Angel"]
[Result "0-1"]
[ECO "A06"]
[WhiteElo "2347"]
[BlackElo "2488"]
[Annotator "ChessBase"]
[PlyCount "68"]
[EventDate "2019.08.10"]
[EventType "swiss"]
[EventCountry "ESP"]
[SourceTitle "playchess.com"]
[Source "ChessBase"]
[SourceQuality "1"]
[TimeControl "5400+30"]

1. Nf3 {[%emt 0:00:00]} d5 {[%emt 0:00:00]} 2. g3 {[%emt 0:00:22]} Nc6 {[%emt 0:00:42]} 3. d4 {[%emt 0:01:07]} Bf5 {[%emt 0:00:07]} 4. Bg2 {[%emt 0:03:00]} Nb4 {[%emt 0:00:21]} 5. Na3 {[%emt 0:02:48]} e6 {[%emt 0:00:05]} 6. O-O {[%emt 0:03:14]} h6 {[%emt 0:00:06]} 7. Ne5 {[%emt 0:05:32]} Bd6 {[%emt 0:00:37]} 8. c4 {[%emt 0:03:52]} Ne7 {[%emt 0:05:52]} 9. Qa4+ {[%emt 0:10:36]} c6 {[%emt 0:11:33]} 10. Nxf7 {[%emt 0:00:05]} Kxf7 {[%emt 0:00:04]} 11. c5 {[%emt 0:00:04]} Bxc5 {[%emt 0:00:35]} 12. dxc5 {[%emt 0:00:12]} Na6 {[%emt 0:00:02]} 13. b4 {[%emt 0:03:13]} Rf8 {[%emt 0:04:23]} 14. Bb2 {[%emt 0:10:05]} Kg8 {[%emt 0:01:05]} 15. Nc2 {[%emt 0:14:33]} Nc7 {[%emt 0:05:16]} 16. Ne3 {[%emt 0:05:15]} Bg6 {[%emt 0:06:54]} 17. Ng4 {[%emt 0:07:32]} Bh5 {[%emt 0:01:48]} 18. h3 {[%emt 0:02:52]} Qe8 {[%emt 0:02:57]} 19. Qb3 {[%emt 0:01:24]} Bxg4 {[%emt 0:04:53]} 20. hxg4 {[%emt 0:00:07]} Qg6 {[%emt 0:00:06]} 21. Bf3 {[%emt 0:02:00]} Ne8 {[%emt 0:00:09]} 22. Qe3 {[%emt 0:00:25]} Qf7 {[%emt 0:01:28]} 23. Kg2 {[%emt 0:01:28]} Nf6 {[%emt 0:00:18]} 24. Rh1 {[%emt 0:04:19]} Nh7 {[%emt 0:04:52]} 25. Rh5 {[%emt 0:01:55]} Ng6 {[%emt 0:01:50]} 26. Rah1 {[%emt 0:01:09]} e5 {[%emt 0:06:36]} 27. Bxe5 {[%emt 0:06:31]} Rae8 {[%emt 0:00:09]} 28. Rf5 {[%emt 0:00:05]} Qd7 {[%emt 0:02:41]} 29. Qd4 {[%emt 0:00:29]} Rxf5 {[%emt 0:00:11]} 30. gxf5 {[%emt 0:02:03]} Nxe5 {[%emt 0:00:04]} 31. Bh5 {[%emt 0:00:28]} Re7 {[%emt 0:00:06]} 32. Bg6 {[%emt 0:00:28]} Nxg6 {[%emt 0:00:17]} 33. fxg6 {[%emt 0:00:08]} Nf6 {[%emt 0:00:22]} 34. Qf4 {[%emt 0:01:04]} Qe8 {[%emt 0:01:38]} 0-1

[Event "7th Iberoamerican-ch 2019"]
[Site "Linares"]
[Date "2019.08.11"]
[Round "2.15"]
[White "Garriga Cazorla, Pere"]
[Black "Lianes Garcia, Marcos"]
[Result "1/2-1/2"]
[ECO "D21"]
[WhiteElo "2495"]
[BlackElo "2346"]
[Annotator "ChessBase"]
[PlyCount "117"]
[EventDate "2019.08.10"]
[EventType "swiss"]
[EventCountry "ESP"]
[SourceTitle "playchess.com"]
[Source "ChessBase"]
[SourceQuality "1"]
[TimeControl "5400+30"]

1. d4 {[%emt 0:00:00]} d5 {[%emt 0:00:00]} 2. c4 {[%emt 0:00:17]} dxc4 {[%emt 0:00:43]} 3. Nf3 {[%emt 0:00:22]} c5 {[%emt 0:03:02]} 4. e3 {[%emt 0:00:06]} cxd4 {[%emt 0:00:51]} 5. Bxc4 {[%emt 0:00:07]} Nc6 {[%emt 0:01:17]} 6. Qb3 {[%emt 0:06:18]} e6 {[%emt 0:01:55]} 7. O-O {[%emt 0:00:07]} Qc7 {[%emt 0:05:17]} 8. Nxd4 {[%emt 0:15:45]} Bd7 {[%emt 0:23:16]} 9. Nb5 {[%emt 0:13:42]} Qb6 {[%emt 0:01:13]} 10. Be2 {[%emt 0:10:58]} Na5 {[%emt 0:15:04]} 11. Qd3 {[%emt 0:03:13]} a6 {[%emt 0:01:16]} 12. N5c3 {[%emt 0:00:49]} Rd8 {[%emt 0:15:20]} 13. e4 {[%emt 0:01:09]} Bb5 {[%emt 0:01:04]} 14. Qg3 {[%emt 0:02:01]} Bxe2 {[%emt 0:01:15]} 15. Nxe2 {[%emt 0:00:07]} Nf6 {[%emt 0:05:11]} 16. Nbc3 {[%emt 0:00:13]} Nc6 {[%emt 0:06:43]} 17. Be3 {[%emt 0:03:45]} Qa5 {[%emt 0:00:13]} 18. Rad1 {[%emt 0:01:44]} Rxd1 {[%emt 0:02:56]} 19. Rxd1 {[%emt 0:00:08]} Nh5 {[%emt 0:00:27]} 20. Qg4 {[%emt 0:02:41]} Nf6 {[%emt 0:01:11]} 21. Qg3 {[%emt 0:02:02]} Nh5 {[%emt 0:00:50]} 22. Qh3 {[%emt 0:00:05]} Nf6 {[%emt 0:05:02]} 23. a3 {[%emt 0:02:40]} Be7 {[%emt 0:01:21]} 24. b4 {[%emt 0:01:37]} Qh5 {[%emt 0:01:21]} 25. Qxh5 {[%emt 0:01:58]} Nxh5 {[%emt 0:00:07]} 26. f4 {[%emt 0:00:06]} Nf6 {[%emt 0:00:24]} 27. e5 {[%emt 0:01:23]} Nd7 {[%emt 0:00:12]} 28. Ne4 {[%emt 0:01:42]} f6 {[%emt 0:02:37]} 29. exf6 {[%emt 0:00:50]} Nxf6 {[%emt 0:00:20]} 30. Ng5 {[%emt 0:01:20]} Nd5 {[%emt 0:00:04]} 31. Bc1 {[%emt 0:01:12]} Bxg5 {[%emt 0:00:05]} 32. fxg5 {[%emt 0:00:02]} O-O {[%emt 0:02:43]} 33. Ng3 {[%emt 0:04:59]} Rd8 {[%emt 0:00:59]} 34. Ne4 {[%emt 0:01:17]} Nb6 {[%emt 0:00:58]} 35. Re1 {[%emt 0:00:20]} Na4 {[%emt 0:00:22]} 36. h4 {[%emt 0:00:56]} e5 {[%emt 0:00:38]} 37. h5 {[%emt 0:00:06]} Rd3 {[%emt 0:01:14]} 38. h6 {[%emt 0:01:02]} gxh6 {[%emt 0:00:50]} 39. gxh6 {[%emt 0:00:07]} Kf7 {[%emt 0:00:12]} 40. Rf1+ {[%emt 0:00:24]} Ke7 {[%emt 0:00:28]} 41. Bg5+ {[%emt 0:01:07]} Ke6 {[%emt 0:00:12]} 42. Nf6 {[%emt 0:00:06]} Nc3 {[%emt 0:01:06]} 43. Nxh7 {[%emt 0:00:18]} Ne2+ {[%emt 0:00:16]} 44. Kh2 {[%emt 0:00:11]} Nf4 {[%emt 0:00:41]} 45. Bxf4 {[%emt 0:00:05]} exf4 {[%emt 0:00:06]} 46. Nf8+ {[%emt 0:00:04]} Kf7 {[%emt 0:00:07]} 47. Rxf4+ {[%emt 0:00:06]} Kg8 {[%emt 0:00:04]} 48. Rg4+ {[%emt 0:02:58]} Kh8 {[%emt 0:00:04]} 49. Rg7 {[%emt 0:00:10]} Ne5 {[%emt 0:00:03]} 50. Ng6+ {[%emt 0:00:06]} Nxg6 {[%emt 0:00:05]} 51. Rxg6 {[%emt 0:00:04]} Rxa3 {[%emt 0:00:10]} 52. g4 {[%emt 0:00:09]} Ra4 {[%emt 0:00:53]} 53. Kh3 {[%emt 0:01:44]} Rxb4 {[%emt 0:00:03]} 54. Re6 {[%emt 0:02:59]} Rc4 {[%emt 0:01:36]} 55. g5 {[%emt 0:00:14]} Rc8 {[%emt 0:01:11]} 56. g6 {[%emt 0:03:05]} a5 {[%emt 0:00:07]} 57. Rb6 {[%emt 0:01:25]} a4 {[%emt 0:01:03]} 58. Rxb7 {[%emt 0:00:14]} Ra8 {[%emt 0:00:04]} 59. Rh7+ {[%emt 0:01:41]} 1/2-1/2